Workbook

Sheet Sheet1
A1: 2024年临湘市农业防灾减灾资金补贴明细表（畜牧业）
A2: 序号 | B2: 镇、街道 | C2: 养殖场（户）名称 | D2: 养殖种类 | E2: 受灾情况 | I2: 合计损毁面积（㎡） | J2: 栏舍补偿金额（元） | K2: 损毁养殖设备数量（台、套） | L2: 设施设备补偿金额（元） | M2: 合计补偿金额（元）
E3: 圈舍倒塌损毁面积（㎡）
E4: 猪舍（㎡） | F4: 牛羊圈舍（㎡） | G4: 家禽舍（㎡） | H4: 其它圈舍（㎡）
A5: 1 | B5: 羊楼司镇 | C5: 陈细云 | D5: 生猪 | E5: 172 | I5: =SUM(E5:H5) -> 172 | J5: =500000/I$141*I5 -> 1281 | L5: =100000/K$141*K5 -> 0 | M5: =SUM(L5,J5) -> 1281
A6: 2 | B6: 羊楼司镇 | C6: 邓六响 | D6: 生猪 | E6: 350 | I6: 350 | J6: 2607 | L6: 0 | M6: 2607
A7: 3 | B7: 羊楼司镇 | C7: 邓焱松 | D7: 生猪 | E7: 800 | I7: 800 | J7: 5960 | L7: 0 | M7: 5960
A8: 4 | B8: 羊楼司镇 | C8: 冯元金 | D8: 生猪 | E8: 230 | I8: 230 | J8: 1713 | L8: 0 | M8: 1713
A9: 5 | B9: 羊楼司镇 | C9: 付学东 | D9: 生猪 | E9: 2260 | I9: 2260 | J9: 16837 | K9: 2 | L9: 4348 | M9: 21185
A10: 6 | B10: 羊楼司镇 | C10: 何本皇 | D10: 生猪 | H10: 40 | I10: 40 | J10: 298 | L10: 0 | M10: 298
A11: 7 | B11: 羊楼司镇 | C11: 何文亮 | D11: 生猪 | E11: 130 | I11: 130 | J11: 968 | L11: 0 | M11: 968
A12: 8 | B12: 羊楼司镇 | C12: 胡建军 | D12: 生猪 | E12: 820 | I12: 820 | J12: 6109 | L12: 0 | M12: 6109
A13: 9 | B13: 羊楼司镇 | C13: 江加新（刘敏） | D13: 生猪 | E13: 30 | I13: 30 | J13: 223 | L13: 0 | M13: 223
A14: 10 | B14: 羊楼司镇 | C14: 黎备战 | D14: 鸡 | G14: 300 | I14: 300 | J14: 2235 | L14: 0 | M14: 2235
A15: 11 | B15: 羊楼司镇 | C15: 李海军 | D15: 生猪 | E15: 230 | I15: 230 | J15: 1713 | L15: 0 | M15: 1713
A16: 12 | B16: 羊楼司镇 | C16: 李明权 | D16: 生猪 | I16: 0 | J16: 0 | K16: 1 | L16: 2174 | M16: 2174
A17: 13 | B17: 羊楼司镇 | C17: 李少军 | D17: 蛋鸡 | G17: 817 | I17: 817 | J17: 6087 | L17: 0 | M17: 6087
A18: 14 | B18: 羊楼司镇 | C18: 李松（李新） | D18: 生猪 | E18: 880 | I18: 880 | J18: 6556 | L18: 0 | M18: 6556
A19: 15 | B19: 羊楼司镇 | C19: 李夭波 | D19: 生猪 | E19: 230 | I19: 230 | J19: 1713 | L19: 0 | M19: 1713
A20: 16 | B20: 羊楼司镇 | C20: 李志峰 | D20: 羊 | F20: 60 | I20: 60 | J20: 447 | L20: 0 | M20: 447
A21: 17 | B21: 羊楼司镇 | C21: 刘海平 | D21: 生猪 | E21: 120 | I21: 120 | J21: 894 | L21: 0 | M21: 894
A22: 18 | B22: 羊楼司镇 | C22: 刘华军 | D22: 生猪 | E22: 1110 | I22: 1110 | J22: 8269 | K22: 1 | L22: 2174 | M22: 10443
A23: 19 | B23: 羊楼司镇 | C23: 沈文德 | D23: 鸡 | G23: 420 | I23: 420 | J23: 3129 | L23: 0 | M23: 3129
A24: 20 | B24: 羊楼司镇 | C24: 刘启飞 | D24: 生猪 | E24: 537 | I24: 537 | J24: 4001 | L24: 0 | M24: 4001
A25: 21 | B25: 羊楼司镇 | C25: 刘修辉 | D25: 生猪 | E25: 160 | I25: 160 | J25: 1192 | L25: 0 | M25: 1192
A26: 22 | B26: 羊楼司镇 | C26: 孟国生(孟庆忠) | D26: 生猪 | E26: 940 | I26: 940 | J26: 7003 | L26: 0 | M26: 7003
A27: 23 | B27: 羊楼司镇 | C27: 孟艳岗 | D27: 生猪 | H27: 400 | I27: 400 | J27: 2980 | L27: 0 | M27: 2980
A28: 24 | B28: 羊楼司镇 | C28: 沈道胜 | D28: 牛 | F28: 210 | I28: 210 | J28: 1564 | L28: 0 | M28: 1564
A29: 25 | B29: 羊楼司镇 | C29: 沈海兵 | D29: 生猪 | E29: 700 | H29: 200 | I29: 900 | J29: 6705 | L29: 0 | M29: 6705
A30: 26 | B30: 羊楼司镇 | C30: 沈守龙（沈洪涛） | D30: 鸡 | G30: 900 | I30: 900 | J30: 6705 | L30: 0 | M30: 6705
A31: 27 | B31: 羊楼司镇 | C31: 师新 | D31: 生猪 | E31: 1057 | I31: 1057 | J31: 7875 | L31: 0 | M31: 7875
A32: 28 | B32: 羊楼司镇 | C32: 王海洋 | D32: 生猪 | E32: 220 | H32: 130 | I32: 350 | J32: 2607 | L32: 0 | M32: 2607
A33: 29 | B33: 羊楼司镇 | C33: 吴召军 | D33: 牛 | F33: 150 | I33: 150 | J33: 1117 | L33: 0 | M33: 1117
A34: 30 | B34: 羊楼司镇 | C34: 徐春辉 | D34: 生猪 | E34: 100 | I34: 100 | J34: 745 | L34: 0 | M34: 745
A35: 31 | B35: 羊楼司镇 | C35: 徐向红 | D35: 生猪 | E35: 437 | I35: 437 | J35: 3256 | L35: 0 | M35: 3256
A36: 32 | B36: 羊楼司镇 | C36: 易海兵 | D36: 生猪 | E36: 670 | I36: 670 | J36: 4991 | K36: 1 | L36: 2174 | M36: 7165
A37: 33 | B37: 羊楼司镇 | C37: 余志胜 | D37: 生猪 | E37: 300 | I37: 300 | J37: 2235 | L37: 0 | M37: 2235
A38: 34 | B38: 羊楼司镇 | C38: 袁红福 | D38: 生猪 | E38: 240 | I38: 240 | J38: 1788 | L38: 0 | M38: 1788
A39: 35 | B39: 羊楼司镇 | C39: 袁宏全 | D39: 生猪 | E39: 118 | I39: 118 | J39: 879 | L39: 0 | M39: 879
A40: 36 | B40: 羊楼司镇 | C40: 周学利（斋公山） | D40: 生猪 | E40: 500 | I40: 500 | J40: 3725 | L40: 0 | M40: 3725
A41: 37 | B41: 羊楼司镇 | C41: 张兵良 | D41: 生猪 | E41: 310 | I41: 310 | J41: 2309 | L41: 0 | M41: 2309
A42: 38 | B42: 羊楼司镇 | C42: 张红国 | D42: 生猪 | E42: 125 | I42: 125 | J42: 931 | L42: 0 | M42: 931
A43: 39 | B43: 羊楼司镇 | C43: 张会军 | D43: 生猪 | H43: 100 | I43: 100 | J43: 745 | K43: 1 | L43: 2174 | M43: 2919
A44: 40 | B44: 羊楼司镇 | C44: 张江辉 | D44: 生猪 | H44: 150 | I44: 150 | J44: 1117 | L44: 0 | M44: 1117
A45: 41 | B45: 羊楼司镇 | C45: 张姣娥（杨爱国） | D45: 生猪 | G45: 400 | H45: 200 | I45: 600 | J45: 4470 | L45: 0 | M45: 4470
A46: 42 | B46: 羊楼司镇 | C46: 钟宇文 | D46: 生猪 | E46: 130 | I46: 130 | J46: 968 | L46: 0 | M46: 968
A47: 43 | B47: 羊楼司镇 | C47: 周炎生 | D47: 生猪 | H47: 200 | I47: 200 | J47: 1490 | L47: 0 | M47: 1490
A48: 44 | B48: 忠防镇 | C48: 谈胜利 | D48: 生猪 | E48: 980 | I48: 980 | J48: 7301 | K48: 1 | L48: 2174 | M48: 9475
A49: 45 | B49: 忠防镇 | C49: 李勇 | D49: 生猪 | E49: 465 | I49: 465 | J49: 3464 | K49: 1 | L49: 2174 | M49: 5638
A50: 46 | B50: 忠防镇 | C50: 骆灿星（谭辉） | D50: 生猪 | E50: 300 | I50: 300 | J50: 2235 | L50: 0 | M50: 2235
A51: 47 | B51: 忠防镇 | C51: 杨夫 | D51: 生猪 | E51: 540 | I51: 540 | J51: 4023 | L51: 0 | M51: 4023
A52: 48 | B52: 忠防镇 | C52: 王中应 | D52: 生猪 | E52: 100 | I52: 100 | J52: 745 | L52: 0 | M52: 745
A53: 49 | B53: 忠防镇 | C53: 袁胜良 | D53: 生猪 | E53: 100 | I53: 100 | J53: 745 | K53: 1 | L53: 2174 | M53: 2919
A54: 50 | B54: 忠防镇 | C54: 何争焰 | D54: 肉牛 | F54: 100 | I54: 100 | J54: 745 | L54: 0 | M54: 745
A55: 51 | B55: 忠防镇 | C55: 张四平 | D55: 肉牛 | F55: 360 | I55: 360 | J55: 2682 | L55: 0 | M55: 2682
A56: 52 | B56: 五里街道 | C56: 姚佑堂 | D56: 生猪 | E56: 500 | I56: 500 | J56: 3725 | K56: 1 | L56: 2174 | M56: 5899
A57: 53 | B57: 五里街道 | C57: 邓良明 | D57: 蛋鸡 | G57: 200 | I57: =SUM(E57:H57) -> 200 | J57: 1490 | L57: 0 | M57: 1490
A58: 54 | B58: 五里街道 | C58: 黎志勇 | D58: 生猪 | E58: 800 | I58: 800 | J58: 5960 | K58: 1 | L58: 2174 | M58: 8134
A59: 55 | B59: 五里街道 | C59: 李海雄 | D59: 生猪 | E59: 1100 | I59: 1100 | J59: 8195 | K59: 1 | L59: 2174 | M59: 10369
A60: 56 | B60: 五里街道 | C60: 黎彬 | D60: 羊 | F60: 700 | I60: 700 | J60: 5215 | L60: 0 | M60: 5215
A61: 57 | B61: 五里街道 | C61: 罗中春 | D61: 生猪 | E61: 800 | I61: 800 | J61: 5960 | L61: 0 | M61: 5960
A62: 58 | B62: 五里街道 | C62: 李小燕 | D62: 肉牛 | F62: 2200 | I62: 2200 | J62: 16390 | K62: 1 | L62: 2174 | M62: 18564
A63: 59 | B63: 五里街道 | C63: 张志敏 | D63: 生猪 | E63: 900 | I63: 900 | J63: 6705 | K63: 1 | L63: 2174 | M63: 8879
A64: 60 | B64: 五里街道 | C64: 张想良 | D64: 生猪 | E64: 600 | I64: 600 | J64: 4470 | K64: 1 | L64: 2174 | M64: 6644
A65: 61 | B65: 五里街道 | C65: 张永德 | D65: 生猪 | E65: 400 | I65: 400 | J65: 2980 | K65: 1 | L65: 2174 | M65: 5154
A66: 62 | B66: 五里街道 | C66: 张兴良 | D66: 生猪 | E66: 450 | I66: 450 | J66: 3352 | K66: 1 | L66: 2174 | M66: 5526
A67: 63 | B67: 五里街道 | C67: 张正保 | D67: 生猪 | E67: 200 | I67: 200 | J67: 1490 | K67: 1 | L67: 2174 | M67: 3664
A68: 64 | B68: 五里街道 | C68: 李海良 | D68: 生猪 | E68: 600 | I68: 600 | J68: 4470 | K68: 1 | L68: 2174 | M68: 6644
A69: 65 | B69: 五里街道 | C69: 李垂虎 | D69: 肉牛 | F69: 3800 | I69: 3800 | J69: =500000/I$141*I69 -> 28310 | K69: 1 | L69: =100000/K$141*K69 -> 2174 | M69: =SUM(L69,J69) -> 30484
A70: 66 | B70: 五里街道 | C70: 张九六 | D70: 蛋鸡 | G70: 300 | I70: 300 | J70: 2235 | L70: 0 | M70: 2235
A71: 67 | B71: 五里街道 | C71: 杜曙 | D71: 蛋鸡 | G71: 800 | I71: 800 | J71: 5960 | L71: 0 | M71: 5960
A72: 68 | B72: 五里街道 | C72: 海四保 | D72: 蛋鸡 | H72: 600 | I72: 600 | J72: 4470 | L72: 0 | M72: 4470
A73: 69 | B73: 五里街道 | C73: 彭天云 | D73: 鸡 | G73: 870 | I73: 870 | J73: 6481 | K73: 1 | L73: 2174 | M73: 8655
A74: 70 | B74: 长塘镇 | C74: 程正良 | D74: 生猪 | E74: 115 | I74: 115 | J74: 857 | L74: 0 | M74: 857
A75: 71 | B75: 长塘镇 | C75: 廖炎 | D75: 生猪 | E75: 95 | I75: 95 | J75: 708 | L75: 0 | M75: 708
A76: 72 | B76: 长塘镇 | C76: 李响良（康晟） | D76: 生猪 | G76: 1100 | I76: 1100 | J76: 8195 | K76: 1 | L76: 2174 | M76: 10369
A77: 73 | B77: 长塘镇 | C77: 沈明明 | D77: 生猪 | E77: 200 | H77: 45 | I77: 245 | J77: 1825 | L77: 0 | M77: 1825
A78: 74 | B78: 白羊田镇 | C78: 刘姝婷 | D78: 生猪 | E78: 1600 | H78: 400 | I78: 2000 | J78: 14900 | L78: 0 | M78: 14900
A79: 75 | B79: 白羊田镇 | C79: 何柏文 | D79: 羊 | F79: 1000 | I79: 1000 | J79: 7450 | L79: 0 | M79: 7450
A80: 76 | B80: 白羊田镇 | C80: 李海峰 | D80: 肉牛 | F80: 50 | I80: 50 | J80: 372 | L80: 0 | M80: 372
A81: 77 | B81: 白羊田镇 | C81: 夏玉奇 | D81: 生猪 | F81: 80 | I81: 80 | J81: 596 | L81: 0 | M81: 596
A82: 78 | B82: 聂市镇 | C82: 孙芳 | D82: 蛋鸡 | G82: 1800 | I82: 1800 | J82: 13410 | K82: 1 | L82: 2174 | M82: 15584
A83: 79 | B83: 聂市镇 | C83: 张再强 | D83: 生猪 | E83: 400 | I83: 400 | J83: 2980 | L83: 0 | M83: 2980
A84: 80 | B84: 聂市镇 | C84: 周岳武（宏岳科技） | D84: 生猪 | H84: 300 | I84: 300 | J84: 2235 | K84: 1 | L84: 2174 | M84: 4409
A85: 81 | B85: 聂市镇 | C85: 李中意 | D85: 蛋鸡 | G85: 50 | I85: 50 | J85: 372 | K85: 1 | L85: 2174 | M85: 2546
A86: 82 | B86: 聂市镇 | C86: 游娥容 | D86: 生猪 | E86: 320 | I86: 320 | J86: 2384 | L86: 0 | M86: 2384
A87: 83 | B87: 聂市镇 | C87: 朱金波 | D87: 生猪 | E87: 100 | I87: 100 | J87: 745 | L87: 0 | M87: 745
A88: 84 | B88: 聂市镇 | C88: 郑运辉 | D88: 牛 | E88: 360 | I88: 360 | J88: 2682 | L88: 0 | M88: 2682
A89: 85 | B89: 聂市镇 | C89: 王康全 | D89: 蛋鸡 | G89: 160 | I89: 160 | J89: 1192 | K89: 1 | L89: 2174 | M89: 3366
A90: 86 | B90: 聂市镇 | C90: 谢建祥 | D90: 生猪 | E90: 270 | I90: 270 | J90: 2011 | K90: 1 | L90: 2174 | M90: 4185
A91: 87 | B91: 聂市镇 | C91: 王新海 | D91: 生猪 | E91: 100 | H91: 600 | I91: 700 | J91: 5215 | L91: 0 | M91: 5215
A92: 88 | B92: 聂市镇 | C92: 丁银山 | D92: 生猪 | E92: 260 | I92: 260 | J92: 1937 | K92: 1 | L92: 2174 | M92: 4111
A93: 89 | B93: 聂市镇 | C93: 沈继文 | D93: 生猪 | E93: 150 | I93: 150 | J93: 1117 | L93: 0 | M93: 1117
A94: 90 | B94: 聂市镇 | C94: 谢太平 | D94: 生猪 | E94: 200 | I94: 200 | J94: 1490 | L94: 0 | M94: 1490
A95: 91 | B95: 聂市镇 | C95: 潘小初 | D95: 蛋鸡 | G95: 450 | I95: 450 | J95: 3352 | L95: 0 | M95: 3352
A96: 92 | B96: 聂市镇 | C96: 郑百海 | D96: 生猪 | I96: 0 | J96: 0 | K96: 1 | L96: 2174 | M96: 2174
A97: 93 | B97: 聂市镇 | C97: 彭佰炼 | D97: 生猪 | E97: 300 | I97: 300 | J97: 2235 | L97: 0 | M97: 2235
A98: 94 | B98: 聂市镇 | C98: 李蒙坤 | D98: 蛋鸡 | G98: 1300 | I98: 1300 | J98: 9685 | K98: 1 | L98: 2174 | M98: 11859
A99: 95 | B99: 聂市镇 | C99: 方志辉 | D99: 生猪 | E99: 50 | I99: 50 | J99: 372 | L99: 0 | M99: 372
A100: 96 | B100: 聂市镇 | C100: 刘益秀 | D100: 生猪 | E100: 200 | I100: 200 | J100: 1490 | K100: 1 | L100: 2174 | M100: 3664
A101: 97 | B101: 聂市镇 | C101: 王和平 | D101: 生猪 | E101: 140 | I101: 140 | J101: 1043 | L101: 0 | M101: 1043
A102: 98 | B102: 聂市镇 | C102: 谢作荣 | D102: 生猪 | E102: 100 | I102: 100 | J102: 745 | K102: 1 | L102: 2174 | M102: 2919
A103: 99 | B103: 聂市镇 | C103: 郑昌华 | D103: 生猪 | E103: 110 | I103: 110 | J103: 819 | L103: 0 | M103: 819
A104: 100 | B104: 聂市镇 | C104: 刘夭元（余西初） | D104: 羊 | F104: 100 | I104: 100 | J104: 745 | L104: 0 | M104: 745
A105: 101 | B105: 聂市镇 | C105: 涂雄兵 | D105: 生猪 | E105: 320 | I105: 320 | J105: 2384 | L105: 0 | M105: 2384
A106: 102 | B106: 聂市镇 | C106: 郑兴四 | D106: 生猪 | E106: 200 | I106: 200 | J106: 1490 | L106: 0 | M106: 1490
A107: 103 | B107: 坦渡镇 | C107: 周飞龙 | D107: 蛋鸡 | G107: 2000 | I107: =SUM(E107:H107) -> 2000 | J107: 14900 | K107: 1 | L107: 2174 | M107: 17074
A108: 104 | B108: 云湖街道 | C108: 李文君（三盛） | D108: 生猪 | H108: 2000 | I108: 2000 | J108: 14900 | K108: 1 | L108: 2174 | M108: 17074
A109: 105 | B109: 云湖街道 | C109: 李细伟 | D109: 生猪 | E109: 800 | H109: 350 | I109: 1150 | J109: 8567 | L109: 0 | M109: 8567
A110: 106 | B110: 云湖街道 | C110: 杜伟平 | D110: 生猪 | E110: 1200 | I110: 1200 | J110: 8940 | L110: 0 | M110: 8940
A111: 107 | B111: 云湖街道 | C111: 易伟 | D111: 羊 | F111: 700 | I111: 700 | J111: 5215 | K111: 1 | L111: 2174 | M111: 7389
A112: 108 | B112: 桃林镇 | C112: 敖友兵 | D112: 生猪 | E112: 573 | I112: 573 | J112: 4269 | L112: 0 | M112: 4269
A113: 109 | B113: 桃林镇 | C113: 张双利 | D113: 生猪 | E113: 610 | I113: 610 | J113: 4544 | L113: 0 | M113: 4544
A114: 110 | B114: 桃林镇 | C114: 李建军 | D114: 生猪 | E114: 900 | I114: 900 | J114: 6705 | L114: 0 | M114: 6705
A115: 111 | B115: 桃林镇 | C115: 李四军 | D115: 生猪 | E115: 408 | I115: 408 | J115: 3040 | L115: 0 | M115: 3040
A116: 112 | B116: 桃林镇 | C116: 吴新柏（求实） | D116: 生猪 | E116: 592 | I116: 592 | J116: 4410 | L116: 0 | M116: 4410
A117: 113 | B117: 桃林镇 | C117: 李炳新 | D117: 牛、羊 | F117: 175 | I117: 175 | J117: 1304 | L117: 0 | M117: 1304
A118: 114 | B118: 桃林镇 | C118: 郑显华 | D118: 羊 | F118: 135 | I118: 135 | J118: 1006 | L118: 0 | M118: 1006
A119: 115 | B119: 桃林镇 | C119: 沈仕军 | D119: 肉鸡 | G119: 1600 | I119: 1600 | J119: 11920 | L119: 0 | M119: 11920
A120: 116 | B120: 桃林镇 | C120: 潘关心 | D120: 蛋鸡 | G120: 2032 | I120: 2032 | J120: 15138 | L120: 0 | M120: 15138
A121: 117 | B121: 长安街道 | C121: 詹中良 | D121: 山羊 | F121: 35 | I121: 35 | J121: 261 | L121: 0 | M121: 261
A122: 118 | B122: 长安街道 | C122: 蒋小香 | D122: 生猪 | I122: 0 | J122: 0 | K122: 1 | L122: 2174 | M122: 2174
A123: 119 | B123: 长安街道 | C123: 周立 | D123: 生猪 | I123: 0 | J123: 0 | K123: 1 | L123: 2174 | M123: 2174
A124: 120 | B124: 长安街道 | C124: 曾国富 | D124: 山羊 | F124: 30 | I124: 30 | J124: 223 | L124: 0 | M124: 223
A125: 121 | B125: 长安街道 | C125: 王生力 | D125: 生猪 | E125: 120 | I125: 120 | J125: 894 | K125: 1 | L125: 2174 | M125: 3068
A126: 122 | B126: 长安街道 | C126: 王忍智 | D126: 生猪 | E126: 160 | I126: 160 | J126: 1192 | K126: 1 | L126: 2174 | M126: 3366
A127: 123 | B127: 长安街道 | C127: 王丽华 | D127: 生猪 | I127: 0 | J127: 0 | K127: 1 | L127: 2174 | M127: 2174
A128: 124 | B128: 长安街道 | C128: 李志文 | D128: 肉牛 | F128: 240 | I128: 240 | J128: 1788 | L128: 0 | M128: 1788
A129: 125 | B129: 长安街道 | C129: 姚维军 | D129: 生猪 | E129: 50 | H129: 42 | I129: 92 | J129: 685 | L129: 0 | M129: 685
A130: 126 | B130: 长安街道 | C130: 张云英 | D130: 生猪 | E130: 80 | I130: 80 | J130: 596 | K130: 1 | L130: 2174 | M130: 2770
A131: 127 | B131: 长安街道 | C131: 曹火箭 | D131: 生猪 | E131: 65 | I131: 65 | J131: 484 | L131: 0 | M131: 484
A132: 128 | B132: 长安街道 | C132: 吴利军 | D132: 生猪 | E132: 40 | I132: 40 | J132: 298 | L132: 0 | M132: 298
A133: 129 | B133: 江南镇 | C133: 姚传文 | D133: 生猪 | H133: 70 | I133: 70 | J133: =500000/I$141*I133 -> 521 | L133: =100000/K$141*K133 -> 0 | M133: =SUM(L133,J133) -> 521
A134: 130 | B134: 江南镇 | C134: 何落星（谭辉） | D134: 生猪 | I134: 0 | J134: 0 | K134: 1 | L134: 2174 | M134: 2174
A135: 131 | B135: 江南镇 | C135: 卢青桥 | D135: 生猪 | E135: 600 | I135: 600 | J135: 4470 | K135: 1 | L135: 2174 | M135: 6644
A136: 132 | B136: 江南镇 | C136: 张甘霖 | D136: 生猪 | E136: 600 | I136: 600 | J136: 4470 | K136: 1 | L136: 2174 | M136: 6644
A137: 133 | B137: 江南镇 | C137: 吕和平 | D137: 蛋鸡 | G137: 415 | I137: 415 | J137: 3092 | L137: 0 | M137: 3092
A138: 134 | B138: 江南镇 | C138: 李怀宝 | D138: 生猪 | I138: 0 | J138: 0 | K138: 1 | L138: 2174 | M138: 2174
A139: 135 | B139: 詹桥镇 | C139: 杨勇 | D139: 生猪 | E139: 50 | I139: 50 | J139: 372 | L139: 0 | M139: 372
A140: 136 | B140: 詹桥镇 | C140: 钟波 | D140: 生猪 | E140: 70 | I140: 70 | J140: 521 | K140: 1 | L140: 2174 | M140: 2695
B141: 合计 | E141: =SUM(E5:E139) -> 35179 | F141: 10125 | G141: 15914 | H141: 5827 | I141: =SUM(I5:I140) -> 67115 | J141: 500000 | K141: 46 | L141: 100000 | M141: 600000

Sheet Sheet2

Sheet Sheet3
